Workbook

Sheet 1. Feladat
B2: Teljesítmény (LE) | C2: (x-x_átlag)^2 | E2: a)
F3: Átlag: | H3: =AVERAGE(Teljesitmény) -> 86.79828326
A4: 1 | B4: 26 | C4: =(B4-H$3)^2 -> 3696.431248 | D4: =A4/$H$4 -> 0.0002384358608 | F4: darabszám (n): | H4: =COUNT(Teljesitmény) -> 4194 | K4: c)
A5: 2 | B5: 27 | C5: 3575.834681 | D5: =A5/$H$4 -> 0.0004768717215 | F5: Korr.tap.szórás: | H5: =SQRT(SUM(ktsz)/(H4-1)) -> 25.87613521 | L5: intervallum szám: | N5: =ROUND(LOG(H4,2)+1,0) -> 13 | S5: e)
A6: 3 | B6: 28 | C6: 3457.238115 | D6: 0.0007153075823 | F6: Ecxel szórás: | H6: =_xlfn.STDEV.S(Teljesitmény) -> 25.87613521
A7: 4 | B7: 30 | C7: 3226.044981 | D7: 0.000953743443 | L7: Int. sorszáma | M7: alsó határ | N7: felső határ | O7: gyakori-ság | P7: hiszt. magasság | Q7: hisztogram diagramhoz | S7: kumulált gyakoriság | T7: eloszlás magasság | U7: tap. eloszlás diagramhoz
A8: 5 | B8: 30 | C8: 3226.044981 | D8: 0.001192179304 | E8: b) | L8: 1 | M8: =_xlfn.PERCENTILE.INC(Teljesitmény,($L8-1)/$N$5) -> 26 | N8: =_xlfn.PERCENTILE.INC(Teljesitmény,$L8/$N$5) -> 53 | O8: =COUNTIF(Teljesitmény,"<"&N8)-COUNTIF(Teljesitmény,"<"&M8) -> 276 | P8: =O8/$O$21/(N8-M8) -> 0.002437344354 | Q8: =M8 -> 26 | R8: 0 | S8: =SUM($O$8:O8) -> 276 | T8: =S8/$H$4 -> 0.06580829757 | U8: 0 | V8: 0
A9: 6 | B9: 30 | C9: 3226.044981 | D9: 0.001430615165 | F9: Kvartilisek: | L9: 2 | M9: =_xlfn.PERCENTILE.INC(Teljesitmény,(L9-1)/$N$5) -> 53 | N9: 64 | O9: 368 | P9: =O9/$O$21/(N9-M9) -> 0.007976763342 | Q9: =M8 -> 26 | R9: =P8 -> 0.002437344354 | S9: =SUM($O$8:O9) -> 644 | T9: =S9/$H$4 -> 0.1535526943 | U9: =N8 -> 53 | V9: 0
A10: 7 | B10: 31 | C10: 3113.448415 | D10: 0.001669051025 | F10: sorszám | G10: érték | I10: Hack, az ábrázoláshoz: | L10: 3 | M10: 64 | N10: 69 | O10: 266 | P10: 0.01268478779 | Q10: =N8 -> 53 | R10: =P8 -> 0.002437344354 | S10: =SUM($O$8:O10) -> 910 | T10: 0.2169766333 | U10: =N8 -> 53 | V10: =T8 -> 0.06580829757
A11: 8 | B11: 33 | C11: 2894.255282 | D11: 0.001907486886 | F11: 0 | G11: =QUARTILE(B$4:B$4197,F11) -> 26 | I11: Q1-MIN | J11: =G12-G11 -> 45 | L11: 4 | M11: 69 | N11: 74 | O11: 326 | P11: 0.01554601812 | Q11: =N8 -> 53 | R11: 0 | S11: =SUM($O$8:O11) -> 1236 | T11: 0.2947067239 | U11: =N9 -> 64 | V11: =T8 -> 0.06580829757
A12: 9 | B12: 33 | C12: 2894.255282 | D12: 0.002145922747 | F12: 1 | G12: =QUARTILE(B$4:B$4197,F12) -> 71 | I12: Q1 | J12: =G12 -> 71 | L12: 5 | M12: 74 | N12: 77 | O12: 290 | P12: 0.02304879987 | Q12: =M9 -> 53 | R12: =P9 -> 0.007976763342 | S12: =SUM($O$8:O12) -> 1526 | T12: 0.3638531235 | U12: =N9 -> 64 | V12: =T9 -> 0.1535526943
A13: 10 | B13: 33 | C13: 2894.255282 | D13: 0.002384358608 | F13: 2 | G13: =QUARTILE(B$4:B$4197,F13) -> 82 | I13: Q2-Q1 | J13: =G13-G12 -> 11 | L13: 6 | M13: 77 | N13: 80 | O13: 349 | P13: 0.02773803847 | Q13: =N9 -> 64 | R13: =P9 -> 0.007976763342 | S13: =SUM($O$8:O13) -> 1875 | T13: 0.4470672389 | U13: =N10 -> 69 | V13: =T9 -> 0.1535526943
A14: 11 | B14: 33 | C14: 2894.255282 | D14: 0.002622794468 | F14: 3 | G14: =QUARTILE(B$4:B$4197,F14) -> 100 | I14: Q3-Q2 | J14: =G14-G13 -> 18 | L14: 7 | M14: 80 | N14: 84 | O14: 314 | P14: 0.01871721507 | Q14: =N9 -> 64 | R14: 0 | S14: =SUM($O$8:O14) -> 2189 | T14: 0.5219360992 | U14: =N10 -> 69 | V14: =T10 -> 0.2169766333
A15: 12 | B15: 33 | C15: 2894.255282 | D15: 0.002861230329 | F15: 4 | G15: =QUARTILE(B$4:B$4197,F15) -> 277 | I15: Q4-Q3 | J15: =G15-G14 -> 177 | L15: 8 | M15: 84 | N15: 89 | O15: 353 | P15: 0.01683357177 | Q15: =M10 -> 64 | R15: =P10 -> 0.01268478779 | S15: =SUM($O$8:O15) -> 2542 | T15: 0.606103958 | U15: =N11 -> 74 | V15: =T10 -> 0.2169766333
A16: 13 | B16: 33 | C16: 2894.255282 | D16: 0.00309966619 | L16: 9 | M16: 89 | N16: 95 | O16: 337 | P16: 0.01339214751 | Q16: =N10 -> 69 | R16: =P10 -> 0.01268478779 | S16: =SUM($O$8:O16) -> 2879 | T16: 0.6864568431 | U16: =N11 -> 74 | V16: =T11 -> 0.2947067239
A17: 14 | B17: 34 | C17: 2787.658715 | D17: 0.003338102051 | L17: 10 | M17: 95 | N17: 102 | O17: 336 | P17: 0.01144492132 | Q17: =N10 -> 69 | R17: 0 | S17: =SUM($O$8:O17) -> 3215 | T17: 0.7665712923 | U17: =N12 -> 77 | V17: =T11 -> 0.2947067239
A18: 15 | B18: 34 | C18: 2787.658715 | D18: 0.003576537911 | F18: IQR | I18: =G14-G12 -> 29 | L18: 11 | M18: 102 | N18: 111 | O18: 310 | P18: 0.008212790759 | Q18: =M11 -> 69 | R18: =P11 -> 0.01554601812 | S18: =SUM($O$8:O18) -> 3525 | T18: 0.8404864092 | U18: =N12 -> 77 | V18: =T12 -> 0.3638531235
A19: 16 | B19: 34 | C19: 2787.658715 | D19: 0.003814973772 | F19: Felfelé kiugró határ | I19: =G14+1.5*I18 -> 143.5 | L19: 12 | M19: 111 | N19: 125 | O19: 330 | P19: 0.005620273861 | Q19: =N11 -> 74 | R19: =P11 -> 0.01554601812 | S19: =SUM($O$8:O19) -> 3855 | T19: 0.9191702432 | U19: =N13 -> 80 | V19: =T12 -> 0.3638531235
A20: 17 | B20: 34 | C20: 2787.658715 | D20: 0.004053409633 | F20: Felfelé extrém kiugró határ | I20: =G14+3*I18 -> 187 | L20: 13 | M20: 125 | N20: 277 | O20: =COUNTIF(Teljesitmény,"<="&N20)-COUNTIF(Teljesitmény,"<"&M20) -> 339 | P20: 0.0005317747158 | Q20: =N11 -> 74 | R20: 0 | S20: =SUM($O$8:O20) -> 4194 | T20: 1 | U20: =N13 -> 80 | V20: =T13 -> 0.4470672389
A21: 18 | B21: 35 | C21: 2683.062149 | D21: 0.004291845494 | F21: Felfelé kiugró db | I21: =COUNTIF($B$10:$B$4203,">"&I19) -> 136 | O21: =SUM(O8:O20) -> 4194 | Q21: =M12 -> 74 | R21: =P12 -> 0.02304879987 | U21: =N14 -> 84 | V21: =T13 -> 0.4470672389
A22: 19 | B22: 35 | C22: 2683.062149 | D22: 0.004530281354 | F22: Felfelé extrém kiugró db | I22: =COUNTIF($B$10:$B$4203,">"&I20) -> 16 | K22: d) | L22: vizsg. Intervall. | N22: 81 | O22: 95 | Q22: =N12 -> 77 | R22: =P12 -> 0.02304879987 | U22: =N14 -> 84 | V22: =T14 -> 0.5219360992
A23: 20 | B23: 35 | C23: 2683.062149 | D23: 0.004768717215 | L23: Hisztogramból | N23: =(N16-M16)*P16+(N15-M15)*P15+(N14-N22)*P14 -> 0.2206723891 | Q23: =N12 -> 77 | R23: 0 | U23: =N15 -> 89 | V23: =T14 -> 0.5219360992
A24: 21 | B24: 35 | C24: 2683.062149 | D24: 0.005007153076 | L24: Adatsorból | N24: =(COUNTIF(B4:B4197,"<"&O22)-COUNTIF(B4:B4197,"<"&N22))/H4 -> 0.2188841202 | Q24: =M13 -> 77 | R24: =P13 -> 0.02773803847 | U24: =N15 -> 89 | V24: =T15 -> 0.606103958
A25: 22 | B25: 36 | C25: 2580.465582 | D25: 0.005245588937 | Q25: =N13 -> 80 | R25: =P13 -> 0.02773803847 | U25: =N16 -> 95 | V25: =T15 -> 0.606103958
A26: 23 | B26: 36 | C26: 2580.465582 | D26: 0.005484024797 | Q26: =N13 -> 80 | R26: 0 | U26: =N16 -> 95 | V26: =T16 -> 0.6864568431
A27: 24 | B27: 36 | C27: 2580.465582 | D27: 0.005722460658 | Q27: =M14 -> 80 | R27: =P14 -> 0.01871721507 | U27: =N17 -> 102 | V27: =T16 -> 0.6864568431
A28: 25 | B28: 36 | C28: 2580.465582 | D28: 0.005960896519 | Q28: =N14 -> 84 | R28: =P14 -> 0.01871721507 | U28: =N17 -> 102 | V28: =T17 -> 0.7665712923
A29: 26 | B29: 36 | C29: 2580.465582 | D29: 0.00619933238 | Q29: =N14 -> 84 | R29: 0 | U29: =N18 -> 111 | V29: =T17 -> 0.7665712923
A30: 27 | B30: 36 | C30: 2580.465582 | D30: 0.00643776824 | Q30: =M15 -> 84 | R30: =P15 -> 0.01683357177 | U30: =N18 -> 111 | V30: =T18 -> 0.8404864092
A31: 28 | B31: 37 | C31: 2479.869016 | D31: 0.006676204101 | Q31: =N15 -> 89 | R31: =P15 -> 0.01683357177 | U31: =N19 -> 125 | V31: =T18 -> 0.8404864092
A32: 29 | B32: 37 | C32: 2479.869016 | D32: 0.006914639962 | Q32: =N15 -> 89 | R32: 0 | U32: =N19 -> 125 | V32: =T19 -> 0.9191702432
A33: 30 | B33: 37 | C33: 2479.869016 | D33: 0.007153075823 | Q33: =M16 -> 89 | R33: =P16 -> 0.01339214751 | U33: =N20 -> 277 | V33: =T19 -> 0.9191702432
A34: 31 | B34: 37 | C34: 2479.869016 | D34: 0.007391511683 | Q34: =N16 -> 95 | R34: =P16 -> 0.01339214751 | U34: =N20 -> 277 | V34: =T20 -> 1
A35: 32 | B35: 38 | C35: 2381.272449 | D35: 0.007629947544 | Q35: =N16 -> 95 | R35: 0 | U35: 300 | V35: =T20 -> 1
A36: 33 | B36: 38 | C36: 2381.272449 | D36: 0.007868383405 | Q36: =M17 -> 95 | R36: =P17 -> 0.01144492132
A37: 34 | B37: 38 | C37: 2381.272449 | D37: 0.008106819266 | Q37: =N17 -> 102 | R37: =P17 -> 0.01144492132
A38: 35 | B38: 38 | C38: 2381.272449 | D38: 0.008345255126 | Q38: =N17 -> 102 | R38: 0
A39: 36 | B39: 39 | C39: 2284.675883 | D39: 0.008583690987 | Q39: =M18 -> 102 | R39: =P18 -> 0.008212790759
A40: 37 | B40: 39 | C40: 2284.675883 | D40: 0.008822126848 | Q40: =N18 -> 111 | R40: =P18 -> 0.008212790759
A41: 38 | B41: 39 | C41: 2284.675883 | D41: 0.009060562709 | Q41: =N18 -> 111 | R41: 0
A42: 39 | B42: 39 | C42: 2284.675883 | D42: 0.009298998569 | Q42: =M19 -> 111 | R42: =P19 -> 0.005620273861
A43: 40 | B43: 39 | C43: 2284.675883 | D43: 0.00953743443 | Q43: =N19 -> 125 | R43: =P19 -> 0.005620273861
A44: 41 | B44: 39 | C44: 2284.675883 | D44: 0.009775870291 | Q44: =N19 -> 125 | R44: 0
A45: 42 | B45: 40 | C45: 2190.079316 | D45: 0.01001430615 | Q45: =M20 -> 125 | R45: =P20 -> 0.0005317747158
A46: 43 | B46: 40 | C46: 2190.079316 | D46: 0.01025274201 | Q46: =N20 -> 277 | R46: =P20 -> 0.0005317747158
A47: 44 | B47: 40 | C47: 2190.079316 | D47: 0.01049117787 | Q47: =N20 -> 277 | R47: 0
A48: 45 | B48: 40 | C48: 2190.079316 | D48: 0.01072961373
A49: 46 | B49: 40 | C49: 2190.079316 | D49: 0.01096804959 | P49: Átlag (X) | Q49: Medián (X) | R49: Y
A50: 47 | B50: 40 | C50: 2190.079316 | D50: 0.01120648546 | P50: =$H$3 -> 86.79828326 | Q50: =$G$13 -> 82 | R50: =MIN(R8:R47) -> 0
A51: 48 | B51: 40 | C51: 2190.079316 | D51: 0.01144492132 | P51: =$H$3 -> 86.79828326 | Q51: =$G$13 -> 82 | R51: =MAX(R8:R47) -> 0.02773803847
A52: 49 | B52: 40 | C52: 2190.079316 | D52: 0.01168335718
A53: 50 | B53: 40 | C53: 2190.079316 | D53: 0.01192179304
A54: 51 | B54: 40 | C54: 2190.079316 | D54: 0.0121602289
A55: 52 | B55: 40 | C55: 2190.079316 | D55: 0.01239866476
A56: 53 | B56: 40 | C56: 2190.079316 | D56: 0.01263710062
A57: 54 | B57: 41 | C57: 2097.48275 | D57: 0.01287553648
A58: 55 | B58: 41 | C58: 2097.48275 | D58: 0.01311397234
A59: 56 | B59: 41 | C59: 2097.48275 | D59: 0.0133524082
A60: 57 | B60: 41 | C60: 2097.48275 | D60: 0.01359084406
A61: 58 | B61: 41 | C61: 2097.48275 | D61: 0.01382927992
A62: 59 | B62: 41 | C62: 2097.48275 | D62: 0.01406771578
A63: 60 | B63: 41 | C63: 2097.48275 | D63: 0.01430615165
A64: 61 | B64: 41 | C64: 2097.48275 | D64: 0.01454458751
A65: 62 | B65: 42 | C65: 2006.886183 | D65: 0.01478302337
A66: 63 | B66: 42 | C66: 2006.886183 | D66: 0.01502145923
A67: 64 | B67: 42 | C67: 2006.886183 | D67: 0.01525989509
A68: 65 | B68: 42 | C68: =(B68-H$3)^2 -> 2006.886183 | D68: 0.01549833095
A69: 66 | B69: 42 | C69: 2006.886183 | D69: =A69/$H$4 -> 0.01573676681
A70: 67 | B70: 42 | C70: 2006.886183 | D70: 0.01597520267
A71: 68 | B71: 43 | C71: 1918.289617 | D71: 0.01621363853
A72: 69 | B72: 43 | C72: 1918.289617 | D72: 0.01645207439
A73: 70 | B73: 43 | C73: 1918.289617 | D73: 0.01669051025
A74: 71 | B74: 43 | C74: 1918.289617 | D74: 0.01692894611
A75: 72 | B75: 43 | C75: 1918.289617 | D75: 0.01716738197
A76: 73 | B76: 43 | C76: 1918.289617 | D76: 0.01740581784
A77: 74 | B77: 43 | C77: 1918.289617 | D77: 0.0176442537
A78: 75 | B78: 43 | C78: 1918.289617 | D78: 0.01788268956
A79: 76 | B79: 43 | C79: 1918.289617 | D79: 0.01812112542
A80: 77 | B80: 43 | C80: 1918.289617 | D80: 0.01835956128
A81: 78 | B81: 43 | C81: 1918.289617 | D81: 0.01859799714
A82: 79 | B82: 44 | C82: 1831.69305 | D82: 0.018836433
A83: 80 | B83: 44 | C83: 1831.69305 | D83: 0.01907486886
A84: 81 | B84: 44 | C84: 1831.69305 | D84: 0.01931330472
A85: 82 | B85: 44 | C85: 1831.69305 | D85: 0.01955174058
A86: 83 | B86: 44 | C86: 1831.69305 | D86: 0.01979017644
A87: 84 | B87: 44 | C87: 1831.69305 | D87: 0.0200286123
A88: 85 | B88: 44 | C88: 1831.69305 | D88: 0.02026704816
A89: 86 | B89: 44 | C89: 1831.69305 | D89: 0.02050548402
A90: 87 | B90: 44 | C90: 1831.69305 | D90: 0.02074391989
A91: 88 | B91: 44 | C91: 1831.69305 | D91: 0.02098235575
A92: 89 | B92: 44 | C92: 1831.69305 | D92: 0.02122079161
A93: 90 | B93: 44 | C93: 1831.69305 | D93: 0.02145922747
A94: 91 | B94: 44 | C94: 1831.69305 | D94: 0.02169766333
A95: 92 | B95: 44 | C95: 1831.69305 | D95: 0.02193609919
A96: 93 | B96: 45 | C96: 1747.096484 | D96: 0.02217453505
A97: 94 | B97: 45 | C97: 1747.096484 | D97: 0.02241297091
A98: 95 | B98: 45 | C98: 1747.096484 | D98: 0.02265140677
A99: 96 | B99: 45 | C99: 1747.096484 | D99: 0.02288984263
A100: 97 | B100: 45 | C100: 1747.096484 | D100: 0.02312827849
A101: 98 | B101: 45 | C101: 1747.096484 | D101: 0.02336671435
A102: 99 | B102: 45 | C102: 1747.096484 | D102: 0.02360515021
A103: 100 | B103: 45 | C103: 1747.096484 | D103: 0.02384358608
A104: 101 | B104: 45 | C104: 1747.096484 | D104: 0.02408202194
A105: 102 | B105: 45 | C105: 1747.096484 | D105: 0.0243204578
A106: 103 | B106: 45 | C106: 1747.096484 | D106: 0.02455889366
A107: 104 | B107: 45 | C107: 1747.096484 | D107: 0.02479732952
A108: 105 | B108: 45 | C108: 1747.096484 | D108: 0.02503576538
A109: 106 | B109: 45 | C109: 1747.096484 | D109: 0.02527420124
A110: 107 | B110: 46 | C110: 1664.499917 | D110: 0.0255126371
A111: 108 | B111: 46 | C111: 1664.499917 | D111: 0.02575107296
A112: 109 | B112: 46 | C112: 1664.499917 | D112: 0.02598950882
A113: 110 | B113: 46 | C113: 1664.499917 | D113: 0.02622794468
A114: 111 | B114: 46 | C114: 1664.499917 | D114: 0.02646638054
A115: 112 | B115: 46 | C115: 1664.499917 | D115: 0.0267048164
A116: 113 | B116: 46 | C116: 1664.499917 | D116: 0.02694325227
A117: 114 | B117: 46 | C117: 1664.499917 | D117: 0.02718168813
A118: 115 | B118: 46 | C118: 1664.499917 | D118: 0.02742012399
A119: 116 | B119: 46 | C119: 1664.499917 | D119: 0.02765855985
A120: 117 | B120: 46 | C120: 1664.499917 | D120: 0.02789699571
A121: 118 | B121: 46 | C121: 1664.499917 | D121: 0.02813543157
A122: 119 | B122: 46 | C122: 1664.499917 | D122: 0.02837386743
A123: 120 | B123: 46 | C123: 1664.499917 | D123: 0.02861230329
A124: 121 | B124: 46 | C124: 1664.499917 | D124: 0.02885073915
A125: 122 | B125: 47 | C125: 1583.903351 | D125: 0.02908917501
A126: 123 | B126: 47 | C126: 1583.903351 | D126: 0.02932761087
A127: 124 | B127: 47 | C127: 1583.903351 | D127: 0.02956604673
A128: 125 | B128: 47 | C128: 1583.903351 | D128: 0.02980448259
A129: 126 | B129: 47 | C129: 1583.903351 | D129: 0.03004291845
A130: 127 | B130: 47 | C130: 1583.903351 | D130: 0.03028135432
A131: 128 | B131: 47 | C131: 1583.903351 | D131: 0.03051979018
A132: 129 | B132: 47 | C132: =(B132-H$3)^2 -> 1583.903351 | D132: 0.03075822604
A133: 130 | B133: 47 | C133: 1583.903351 | D133: =A133/$H$4 -> 0.0309966619
A134: 131 | B134: 47 | C134: 1583.903351 | D134: 0.03123509776
A135: 132 | B135: 47 | C135: 1583.903351 | D135: 0.03147353362
A136: 133 | B136: 47 | C136: 1583.903351 | D136: 0.03171196948
A137: 134 | B137: 47 | C137: 1583.903351 | D137: 0.03195040534
A138: 135 | B138: 47 | C138: 1583.903351 | D138: 0.0321888412
A139: 136 | B139: 47 | C139: 1583.903351 | D139: 0.03242727706
A140: 137 | B140: 47 | C140: 1583.903351 | D140: 0.03266571292
A141: 138 | B141: 48 | C141: 1505.306784 | D141: 0.03290414878
A142: 139 | B142: 48 | C142: 1505.306784 | D142: 0.03314258464
A143: 140 | B143: 48 | C143: 1505.306784 | D143: 0.03338102051
A144: 141 | B144: 48 | C144: 1505.306784 | D144: 0.03361945637
A145: 142 | B145: 48 | C145: 1505.306784 | D145: 0.03385789223
A146: 143 | B146: 48 | C146: 1505.306784 | D146: 0.03409632809
A147: 144 | B147: 48 | C147: 1505.306784 | D147: 0.03433476395
A148: 145 | B148: 48 | C148: 1505.306784 | D148: 0.03457319981
A149: 146 | B149: 48 | C149: 1505.306784 | D149: 0.03481163567
A150: 147 | B150: 48 | C150: 1505.306784 | D150: 0.03505007153
A151: 148 | B151: 48 | C151: 1505.306784 | D151: 0.03528850739
A152: 149 | B152: 48 | C152: 1505.306784 | D152: 0.03552694325
A153: 150 | B153: 48 | C153: 1505.306784 | D153: 0.03576537911
A154: 151 | B154: 48 | C154: 1505.306784 | D154: 0.03600381497
A155: 152 | B155: 48 | C155: 1505.306784 | D155: 0.03624225083
A156: 153 | B156: 48 | C156: 1505.306784 | D156: 0.0364806867
A157: 154 | B157: 48 | C157: 1505.306784 | D157: 0.03671912256
A158: 155 | B158: 48 | C158: 1505.306784 | D158: 0.03695755842
A159: 156 | B159: 48 | C159: 1505.306784 | D159: 0.03719599428
A160: 157 | B160: 48 | C160: 1505.306784 | D160: 0.03743443014
A161: 158 | B161: 49 | C161: 1428.710218 | D161: 0.037672866
A162: 159 | B162: 49 | C162: 1428.710218 | D162: 0.03791130186
A163: 160 | B163: 49 | C163: 1428.710218 | D163: 0.03814973772
A164: 161 | B164: 49 | C164: 1428.710218 | D164: 0.03838817358
A165: 162 | B165: 49 | C165: 1428.710218 | D165: 0.03862660944
A166: 163 | B166: 49 | C166: 1428.710218 | D166: 0.0388650453
A167: 164 | B167: 49 | C167: 1428.710218 | D167: 0.03910348116
A168: 165 | B168: 49 | C168: 1428.710218 | D168: 0.03934191702
A169: 166 | B169: 49 | C169: 1428.710218 | D169: 0.03958035289
A170: 167 | B170: 49 | C170: 1428.710218 | D170: 0.03981878875
A171: 168 | B171: 49 | C171: 1428.710218 | D171: 0.04005722461
A172: 169 | B172: 49 | C172: 1428.710218 | D172: 0.04029566047
A173: 170 | B173: 49 | C173: 1428.710218 | D173: 0.04053409633
A174: 171 | B174: 49 | C174: 1428.710218 | D174: 0.04077253219
A175: 172 | B175: 49 | C175: 1428.710218 | D175: 0.04101096805
A176: 173 | B176: 49 | C176: 1428.710218 | D176: 0.04124940391
A177: 174 | B177: 49 | C177: 1428.710218 | D177: 0.04148783977
A178: 175 | B178: 49 | C178: 1428.710218 | D178: 0.04172627563
A179: 176 | B179: 49 | C179: 1428.710218 | D179: 0.04196471149
A180: 177 | B180: 49 | C180: 1428.710218 | D180: 0.04220314735
A181: 178 | B181: 49 | C181: 1428.710218 | D181: 0.04244158321
A182: 179 | B182: 49 | C182: 1428.710218 | D182: 0.04268001907
A183: 180 | B183: 49 | C183: 1428.710218 | D183: 0.04291845494
A184: 181 | B184: 50 | C184: 1354.113651 | D184: 0.0431568908
A185: 182 | B185: 50 | C185: 1354.113651 | D185: 0.04339532666
A186: 183 | B186: 50 | C186: 1354.113651 | D186: 0.04363376252
A187: 184 | B187: 50 | C187: 1354.113651 | D187: 0.04387219838
A188: 185 | B188: 50 | C188: 1354.113651 | D188: 0.04411063424
A189: 186 | B189: 50 | C189: 1354.113651 | D189: 0.0443490701
A190: 187 | B190: 50 | C190: 1354.113651 | D190: 0.04458750596
A191: 188 | B191: 50 | C191: 1354.113651 | D191: 0.04482594182
A192: 189 | B192: 50 | C192: 1354.113651 | D192: 0.04506437768
A193: 190 | B193: 50 | C193: 1354.113651 | D193: 0.04530281354
A194: 191 | B194: 50 | C194: 1354.113651 | D194: 0.0455412494
A195: 192 | B195: 50 | C195: 1354.113651 | D195: 0.04577968526
A196: 193 | B196: 50 | C196: =(B196-H$3)^2 -> 1354.113651 | D196: 0.04601812113
A197: 194 | B197: 50 | C197: 1354.113651 | D197: =A197/$H$4 -> 0.04625655699
A198: 195 | B198: 50 | C198: 1354.113651 | D198: 0.04649499285
A199: 196 | B199: 50 | C199: 1354.113651 | D199: 0.04673342871
A200: 197 | B200: 50 | C200: 1354.113651 | D200: 0.04697186457
A201: 198 | B201: 50 | C201: 1354.113651 | D201: 0.04721030043
... 3996 more rows

Sheet Gyakorló adatsor
B4: 125.8431
B5: 173.2335
B6: 139.0806
B7: 178.784
B8: 138.8579
B9: 108.31
B10: 163.2204
B11: 104.5014
B12: 152.2256
B13: 141.4964
B14: 95.1047
B15: 137.7688
B16: 157.6313
B17: 174.9963
B18: 123.5817
B19: 148.0059
B20: 154.7139
B21: 169.3335
B22: 153.9229
B23: 167.2884
B24: 140.0289
B25: 90.3684
B26: 182.8831
B27: 116.2346
B28: 165.9503
B29: 111.1853
B30: 160.4969
B31: 157.8027
B32: 123.713
B33: 137.0918
B34: 165.4338
B35: 145.0057
B36: 154.7732
B37: 148.9545
B38: 100.4933
B39: 164.6483
B40: 146.2623
B41: 108.3195
B42: 124.1634
B43: 139.8663
B44: 167.1359
B45: 122.0254
B46: 62.8787
B47: 143.2894
B48: 110.9775
B49: 112.9439
B50: 139.2658
B51: 170.371
B52: 117.4044
B53: 186.2999
B54: 189.1042
B55: 105.3745
B56: 116.5745
B57: 101.5681
B58: 167.1268
B59: 136.791
B60: 144.9256
B61: 154.5725
B62: 110.5256
B63: 177.2323
B64: 171.5584
B65: 117.6189
B66: 148.5878
B67: 166.8665
B68: 114.3115
B69: 101.2701
B70: 133.7534
B71: 81.6992
B72: 171.065
B73: 123.2919
B74: 159.444
B75: 121.0584
B76: 93.3733
B77: 173.1965
B78: 135.4048
B79: 160.1917
B80: 106.9251
B81: 162.715
B82: 121.6732
B83: 113.3637
B84: 186.8593
B85: 118.3528
B86: 117.2994
B87: 181.6259
B88: 175.318
B89: 118.4505
B90: 171.111
B91: 79.9321
B92: 171.1053
B93: 192.7404
B94: 126.7928
B95: 75.4122
B96: 114.3633
B97: 131.0976
B98: 147.5647
B99: 187.1115
B100: 148.5267
B101: 138.2011
B102: 138.4577
B103: 134.3898
B104: 103.8459
B105: 181.626
B106: 77.3613
B107: 177.1205
B108: 88.2636
B109: 187.4852
B110: 156.3522
B111: 183.5258
B112: 143.3876
B113: 102.2578
B114: 165.4783
B115: 122.0766
B116: 92.5457
B117: 123.7167
B118: 132.2187
B119: 121.8718
B120: 133.7786
B121: 146.1224
B122: 89.4739
B123: 146.9359
B124: 129.5852
B125: 151.1755
B126: 176.6589
B127: 146.0468
B128: 118.7495
B129: 178.7797
B130: 131.3929
B131: 156.6703
B132: 68.7686
B133: 156.2398
B134: 142.3504
B135: 132.9425
B136: 140.8525
B137: 163.936
B138: 180.5521
B139: 157.095
B140: 136.1094
B141: 161.416
B142: 144.2566
B143: 144.1147
B144: 87.2611
B145: 160.5338
B146: 144.3812
B147: 94.7203
B148: 157.7684
B149: 134.492
B150: 145.8681
B151: 153.3889
B152: 82.3454
B153: 115.1489
B154: 192.0955
B155: 103.0529
B156: 142.2387
B157: 177.3268
B158: 94.8274
B159: 185.061
B160: 142.6108
B161: 135.5305
B162: 123.2082
B163: 128.1856
B164: 130.8523
B165: 104.9961
B166: 155.5288
B167: 142.6077
B168: 115.0322
B169: 151.272
B170: 114.1905
B171: 154.9298
B172: 133.6526
B173: 162.9977
B174: 199.2916
B175: 166.101
B176: 167.4357
B177: 136.5387
B178: 179.0614
B179: 138.9671
B180: 133.158
B181: 147.0636
B182: 113.5246
B183: 118.171
B184: 152.7032
B185: 143.6725
B186: 127.0312
B187: 199.7764
B188: 148.975
B189: 75.2125
B190: 148.2186
B191: 120.5534
B192: 110.1895
B193: 154.0755
B194: 144.1033
B195: 146.9091
B196: 107.7161
B197: 174.7777
B198: 105.2235
B199: 148.4588
B200: 101.1217
B201: 133.1291
B202: 166.4355
B203: 178.9185
... 3994 more rows
